bitfinex/quotes_BTCUSD_20240629
["timestamp","ask_amount","ask_price","bid_price","bid_amount"]
[1719652580410,0.00284,61000.0,60999.0,0.8540641]
[1719652580588,0.00284,61000.0,60999.0,0.6540641]
[1719652584439,0.00284,61000.0,60999.0,0.8540641]
[1719652585173,0.00284,61000.0,60999.0,0.8340641]
[1719652585514,0.00284,61000.0,60999.0,0.6540641]
[1719652585926,0.00284,61000.0,60999.0,0.2044641]
[1719652589010,0.00279639,61000.0,60999.0,0.2044641]
[1719652591896,0.20415009,61006.0,60999.0,0.2044641]
[1719652592141,0.20415009,61006.0,61000.0,0.023]
[1719652592335,0.20415009,61006.0,61001.0,0.16233898]
[1719652592610,0.20415009,61006.0,61002.0,0.023]
[1719652592812,0.20415009,61006.0,61003.0,0.16233898]
[1719652593120,0.0961,61004.0,61003.0,0.1717262]
[1719652593360,0.0961,61004.0,61003.0,0.1947262]
[1719652595874,0.0971,61004.0,61003.0,0.2017262]
[1719652596217,0.0981,61004.0,61003.0,0.2047262]
[1719652596402,0.0991,61004.0,61003.0,0.2117262]
[1719652596568,0.0981,61004.0,61003.0,0.2017262]
[1719652596764,0.0981,61004.0,61003.0,0.2117262]
[1719652597097,0.0991,61004.0,61003.0,0.2117262]
[1719652598434,0.2394,61004.0,61003.0,0.2117262]
[1719652598634,0.3394,61004.0,61003.0,0.2117262]
[1719652612314,0.1991,61004.0,61003.0,0.1887262]
[1719652612519,0.4522,61004.0,61003.0,0.1887262]
[1719652612947,0.1991,61004.0,61003.0,0.1887262]
[1719652616239,0.0991,61004.0,61003.0,0.1887262]
[1719652634458,0.0991,61004.0,61003.0,0.3241262]
[1719652634833,0.0991,61004.0,61003.0,0.8241262]
[1719652635050,0.0991,61004.0,61003.0,0.93983122]
[1719652635251,0.0991,61004.0,61003.0,0.8441262]
[1719652637038,0.0991,61004.0,61003.0,0.8241262]
[1719652642019,0.003,61004.0,61003.0,0.8241262]
[1719652642224,0.003,61004.0,61003.0,0.8441262]
[1719652642758,0.0991,61004.0,61003.0,0.8441262]
[1719652643209,0.0991,61004.0,61003.0,0.8241262]
[1719652644329,0.003,61004.0,61003.0,0.8441262]
[1719652644549,0.0991,61004.0,61003.0,0.98283122]
[1719652646233,0.0991,61004.0,61003.0,0.8471262]
[1719652648606,0.0991,61004.0,61003.0,0.8671262]
[1719652650579,0.0991,61004.0,61003.0,0.8471262]
[1719652652078,0.0991,61004.0,61003.0,0.8671262]
[1719652652316,0.0991,61004.0,61003.0,0.8471262]
[1719652658538,0.03192775,61007.0,61003.0,0.8471262]
[1719652658781,0.03192775,61007.0,61004.0,0.023]
[1719652659035,0.03192775,61007.0,61005.0,0.16233898]
[1719652659301,0.03192775,61007.0,61006.0,0.023]
[1719652659530,0.12802775,61007.0,61006.0,0.18533898]
[1719652659761,0.12802775,61007.0,61006.0,0.1940506]
[1719652660219,0.13002775,61007.0,61006.0,0.1940506]
[1719652660711,0.12902775,61007.0,61006.0,0.1940506]
[1719652660950,0.22902775,61007.0,61006.0,0.1940506]
[1719652661210,0.22902775,61007.0,61006.0,0.2010506]
[1719652661211,0.23002775,61007.0,61006.0,0.2010506]
[1719652661434,0.22902775,61007.0,61006.0,0.2010506]
[1719652661876,0.23002775,61007.0,61006.0,0.2070506]
[1719652668733,0.1981,61007.0,61006.0,0.2070506]
[1719652674482,0.19894,61007.0,61006.0,0.2070506]
[1719652684294,0.10284,61007.0,61006.0,0.2070506]
[1719652684505,0.10284,61007.0,61006.0,0.1840506]
[1719652684506,0.19894,61007.0,61006.0,0.1840506]
[1719652697563,0.00284,61007.0,61006.0,0.48422868]
[1719652697794,0.00284,61007.0,61006.0,1.05722868]
[1719652698691,0.00184,61007.0,61006.0,1.05122868]
[1719652698901,0.00284,61007.0,61006.0,1.05922868]
[1719652699133,0.00184,61007.0,61006.0,1.04422868]
[1719652699358,0.00284,61007.0,61006.0,1.05122868]
[1719652699566,0.00384,61007.0,61006.0,1.05922868]
[1719652699826,0.00384,61007.0,61006.0,1.05149526]
[1719652699827,0.00284,61007.0,61006.0,1.05149526]
[1719652700066,0.00184,61007.0,61006.0,1.04449526]
[1719652700345,0.00384,61007.0,61006.0,1.06649526]
[1719652700568,0.00184,61007.0,61006.0,1.22071263]
[1719652700807,0.00084,61007.0,61006.0,1.04449526]
[1719652701039,0.00084,61007.0,61006.0,1.05849526]
[1719652702060,0.00184,61007.0,61006.0,1.64784718]
[1719652702280,0.00084,61007.0,61006.0,1.63384718]
[1719652702539,0.00084,61007.0,61006.0,1.64784718]
[1719652702540,0.00184,61007.0,61006.0,1.64784718]
[1719652703015,0.00184,61007.0,61006.0,1.43384718]
[1719652703204,0.00084,61007.0,61006.0,1.41984718]
[1719652703476,0.00184,61007.0,61006.0,1.43384718]
[1719652703732,0.00284,61007.0,61006.0,1.44784718]
[1719652703990,0.00184,61007.0,61006.0,1.43384718]
[1719652704230,0.00184,61007.0,61006.0,1.33521718]
[1719652704461,0.00184,61007.0,61006.0,1.73221718]
[1719652704702,0.00284,61007.0,61006.0,1.54621718]
[1719652704936,0.00284,61007.0,61006.0,1.74621718]
[1719652705887,0.00284,61007.0,61006.0,1.76921718]
[1719652706103,0.00184,61007.0,61006.0,1.75521718]
[1719652706395,0.00184,61007.0,61006.0,1.56921718]
[1719652706620,0.00084,61007.0,61006.0,1.54121718]
[1719652707123,0.00084,61007.0,61006.0,1.55614118]
[1719652707371,0.00084,61007.0,61006.0,1.75614118]
[1719652707869,0.00084,61007.0,61006.0,0.90024118]
[1719652708131,0.00084,61007.0,61006.0,0.92024118]
[1719652708132,0.09694,61007.0,61006.0,0.92024118]
[1719652709086,0.00084,61007.0,61006.0,0.94324118]
[1719652709310,0.00084,61007.0,61006.0,0.92924118]
[1719652709537,0.00184,61007.0,61006.0,0.94324118]
[1719652710238,0.00184,61007.0,61006.0,0.92924118]
[1719652710711,0.00284,61007.0,61006.0,0.94324118]
[1719652719129,0.00284,61007.0,61006.0,0.92324118]
[1719652719382,0.09894,61007.0,61006.0,0.94324118]
[1719652720559,0.00284,61007.0,61006.0,0.94324118]
[1719652720782,0.09894,61007.0,61006.0,0.94324118]
[1719652723412,0.00284,61007.0,61006.0,0.92324118]
[1719652723657,0.00284,61007.0,61006.0,0.94324118]
[1719652726703,0.00284,61007.0,61006.0,0.92324118]
[1719652727549,0.09894,61007.0,61006.0,0.92324118]
[1719652727973,0.2,61033.0,61006.0,0.92324118]
[1719652727974,0.19603057,61034.0,61019.0,0.00396943]
[1719652728198,0.0961,61020.0,61019.0,0.00396943]
[1719652728838,2.351999,61020.0,61019.0,0.00396943]
[1719652729070,2.351999,61020.0,61019.0,0.01306195]
[1719652729288,2.36901188,61020.0,61019.0,0.00496943]
[1719652729501,2.35505724,61020.0,61019.0,0.01406195]
[1719652729715,2.35605724,61020.0,61019.0,0.01096943]
[1719652730140,2.45705724,61020.0,61019.0,0.01796943]
[1719652730855,2.45705724,61020.0,61019.0,0.03796943]
[1719652731036,2.45705724,61020.0,61019.0,0.01796943]
[1719652731282,2.17079924,61020.0,61019.0,0.01796943]
[1719652732576,1.370602,61020.0,61019.0,0.01796943]
[1719652732805,1.38761463,61020.0,61019.0,0.01796943]
[1719652735601,1.38761463,61020.0,61019.0,0.06796943]
[1719652736100,1.38761467,61020.0,61019.0,0.06796943]
[1719652739174,1.370602,61020.0,61019.0,0.06796943]
[1719652739380,1.38761545,61020.0,61019.0,0.06796943]
[1719652739609,1.370602,61020.0,61019.0,0.06889343]
[1719652739859,1.38761552,61020.0,61019.0,0.06889343]
[1719652740576,1.38761552,61020.0,61019.0,0.07798691]
[1719652742273,1.38761552,61020.0,61019.0,0.07791935]
[1719652743581,1.38761552,61020.0,61019.0,0.07394992]
[1719652743784,1.38761552,61020.0,61019.0,0.07791935]
[1719652744857,1.38761556,61020.0,61019.0,0.07791935]
[1719652748162,1.3876154,61020.0,61019.0,0.07791935]
[1719652748596,1.3876154,61020.0,61019.0,0.09791935]
[1719652751365,1.8911794,61020.0,61019.0,0.09791935]
[1719652751591,0.21511379,61020.0,61019.0,0.09791935]
[1719652751845,0.1981,61020.0,61019.0,0.09791935]
[1719652752135,1.985753,61020.0,61019.0,0.09791935]
[1719652753325,1.77906689,61020.0,61019.0,0.09791935]
[1719652754546,1.77906785,61020.0,61019.0,0.09791935]
[1719652755241,1.77906785,61020.0,61019.0,0.07791935]
[1719652755693,1.77906785,61020.0,61019.0,0.09791935]
[1719652759135,1.762053,61020.0,61019.0,0.09791935]
[1719652759362,1.762053,61020.0,61019.0,0.07791935]
[1719652759595,1.762053,61020.0,61019.0,0.07394992]
[1719652759868,1.762053,61020.0,61019.0,0.07791935]
[1719652760329,1.705281,61020.0,61019.0,0.07791935]
[1719652762665,1.672531,61020.0,61019.0,0.07791935]
[1719652763889,0.1981,61020.0,61019.0,0.07791935]
[1719652764097,0.0981,61020.0,61019.0,0.07791935]
[1719652764285,1.913575,61020.0,61019.0,0.07791935]
[1719652764493,2.013575,61020.0,61019.0,0.07791935]
[1719652764702,1.953575,61020.0,61019.0,0.07791935]
[1719652767388,1.665293,61020.0,61019.0,0.07791935]
[1719652768475,1.638689,61020.0,61019.0,0.07791935]
[1719652770371,1.638689,61020.0,61019.0,0.07394992]
[1719652770787,1.638689,61020.0,61019.0,0.07791935]
[1719652771085,1.65571072,61020.0,61019.0,0.07791935]
[1719652772464,1.638689,61020.0,61019.0,0.07791935]
[1719652772703,1.65571072,61020.0,61019.0,0.07791935]
[1719652772920,1.638689,61020.0,61019.0,0.07791935]
[1719652773133,1.6557107,61020.0,61019.0,0.07791935]
[1719652774416,1.6565507,61020.0,61019.0,0.07791935]
[1719652775999,1.639529,61020.0,61019.0,0.07791935]
[1719652776214,1.65655456,61020.0,61019.0,0.07791935]
[1719652777486,1.43751656,61020.0,61019.0,0.07791935]
[1719652781078,1.28881656,61020.0,61019.0,0.09791935]
[1719652781285,1.28881656,61020.0,61019.0,0.07791935]
[1719652783173,1.28881677,61020.0,61019.0,0.07791935]
[1719652783592,1.288817,61020.0,61019.0,0.07791935]
[1719652786283,1.28881719,61020.0,61019.0,0.07791935]
[1719652786495,1.28881719,61020.0,61019.0,0.09791935]
[1719652787354,1.28881719,61020.0,61019.0,0.07791935]
[1719652788030,0.21596619,61020.0,61019.0,0.07791935]
[1719652788828,2.17527119,61020.0,61019.0,0.07791935]
[1719652789030,0.21596619,61020.0,61019.0,0.09791935]
[1719652789488,2.158245,61020.0,61019.0,0.09791935]
[1719652789705,2.17527115,61020.0,61019.0,0.09791935]
[1719652791083,2.17527115,61020.0,61019.0,0.07394992]
[1719652791231,2.27997115,61020.0,61019.0,0.07394992]
[1719652792893,2.27997089,61020.0,61019.0,0.07394992]
[1719652793387,2.5749044,61020.0,61019.0,0.07394992]
[1719652793624,2.5749044,61020.0,61019.0,0.06485644]
[1719652793625,2.62280064,61020.0,61019.0,0.06485644]
[1719652794025,2.62280064,61020.0,61019.0,0.07395449]
[1719652794286,2.62280064,61020.0,61019.0,0.06695449]
[1719652794287,2.62180064,61020.0,61019.0,0.06695449]
[1719652794687,2.62080064,61020.0,61019.0,0.06102205]
[1719652794902,2.60377495,61020.0,61019.0,0.06102205]
[1719652795117,2.57290291,61020.0,61019.0,0.050924]
[1719652795326,2.57290291,61020.0,61019.0,0.06002523]
[1719652795749,2.57290291,61020.0,61019.0,0.06102523]
[1719652799143,2.57290298,61020.0,61019.0,0.06102523]
[1719652799339,2.57290298,61020.0,61019.0,0.051924]
[1719652801589,2.55587871,61020.0,61019.0,0.051924]
[1719652801809,2.57290309,61020.0,61019.0,0.051924]
[1719652802818,2.57290309,61020.0,61019.0,0.053528]
[1719652804860,2.55587871,61020.0,61019.0,0.053528]
[1719652805058,2.57290316,61020.0,61019.0,0.053528]
[1719652805563,2.57290316,61020.0,61019.0,0.05749743]
[1719652805749,3.80156316,61020.0,61019.0,0.06660104]
[1719652806073,3.90481216,61020.0,61019.0,0.053528]
[1719652806287,3.86731216,61020.0,61019.0,0.053528]
[1719652808003,3.85028771,61020.0,61019.0,0.053528]
[1719652808207,3.86730842,61020.0,61019.0,0.053528]
[1719652809322,3.70497471,61020.0,61019.0,0.053528]
[1719652811239,3.687954,61020.0,61019.0,0.053528]
[1719652811447,3.70497449,61020.0,61019.0,0.053528]
[1719652814628,3.687954,61020.0,61019.0,0.053528]
[1719652814857,3.70497427,61020.0,61019.0,0.053528]
[1719652816379,3.42642493,61020.0,61019.0,0.053528]
[1719652816604,3.52252493,61020.0,61019.0,0.053528]
[1719652818360,3.52252496,61020.0,61019.0,0.053528]
[1719652818569,3.62252496,61020.0,61019.0,0.053528]
[1719652821046,3.60550466,61020.0,61019.0,0.053528]
[1719652821269,3.62252385,61020.0,61019.0,0.053528]
[1719652822617,3.48411485,61020.0,61019.0,0.05749743]
[1719652823025,3.48411485,61020.0,61019.0,0.0666013]
[1719652823925,3.59205637,61020.0,61019.0,0.0666013]
[1719652824365,3.57503978,61020.0,61019.0,0.05749743]
[1719652824579,3.48411205,61020.0,61019.0,0.05749743]
[1719652826587,3.48411205,61020.0,61019.0,0.053528]
[1719652827003,3.48411205,61020.0,61019.0,0.06263187]
[1719652827651,3.46709566,61020.0,61019.0,0.06263187]
[1719652827872,3.48411201,61020.0,61019.0,0.06263187]
[1719652828085,3.48411201,61020.0,61019.0,0.05749743]
[1719652828306,3.43312135,61020.0,61019.0,0.05749743]
[1719652828525,3.19595235,61020.0,61019.0,0.06263187]
[1719652828749,2.92994735,61020.0,61019.0,0.053528]
[1719652828959,2.92994735,61020.0,61019.0,0.06263187]
[1719652829180,2.92994735,61020.0,61019.0,0.053528]
[1719652829409,1.44141635,61020.0,61019.0,0.06263187]
[1719652829648,1.44141635,61020.0,61019.0,0.053528]
[1719652829892,1.44141635,61020.0,61019.0,0.06263187]
[1719652830539,1.34531635,61020.0,61019.0,0.19963187]
[1719652830788,1.44141635,61020.0,61019.0,0.19963187]
[1719652831001,1.44141724,61020.0,61019.0,0.19963187]
[1719652831224,0.60543224,61020.0,61019.0,0.3285013]
[1719652831444,0.37353296,61020.0,61019.0,0.3285013]
[1719652831673,0.37353296,61020.0,61019.0,0.33159084]
[1719652831889,0.27743296,61020.0,61019.0,0.33159084]
[1719652832127,0.37353296,61020.0,61019.0,0.33159084]
[1719652832562,0.356515,61020.0,61019.0,0.33159084]
[1719652834396,0.356515,61020.0,61019.0,0.30762141]
[1719652834612,0.356515,61020.0,61019.0,0.33159084]
[1719652834822,0.356515,61020.0,61019.0,0.30762141]
[1719652835042,0.356515,61020.0,61019.0,0.33159084]
[1719652835256,0.356515,61020.0,61019.0,0.30762141]
[1719652835469,0.356515,61020.0,61019.0,0.33159084]
[1719652837782,0.357355,61020.0,61019.0,0.33159084]
[1719652838918,0.357355,61020.0,61019.0,0.22669084]
[1719652839640,0.357355,61020.0,61019.0,0.21669084]
[1719652839856,0.357355,61020.0,61019.0,0.22669084]
[1719652840298,0.357355,61020.0,61019.0,0.20272141]
[1719652840732,0.357355,61020.0,61019.0,0.20669084]
[1719652840942,0.597255,61020.0,61019.0,0.06572141]
[1719652842084,0.61427281,61020.0,61019.0,0.06572141]
[1719652843647,0.45385781,61020.0,61019.0,0.06572141]
[1719652843877,0.47087274,61020.0,61019.0,0.06572141]
[1719652844116,0.45385637,61020.0,61019.0,0.06572141]
[1719652844604,0.45385637,61020.0,61019.0,0.053528]
[1719652845344,0.45385637,61020.0,61019.0,0.05346848]
[1719652845814,5.50785637,61020.0,61019.0,0.05246848]
[1719652846048,5.51485637,61020.0,61019.0,0.05346848]
[1719652846785,5.50785637,61020.0,61019.0,0.05246848]
[1719652847030,5.5278721,61020.0,61019.0,0.05246848]
[1719652848980,4.9144161,61020.0,61019.0,0.05246848]
[1719652849233,4.8294161,61020.0,61019.0,0.05246848]
[1719652849490,4.5805271,61020.0,61019.0,0.05246848]
[1719652853326,4.56351137,61020.0,61019.0,0.05246848]
[1719652853535,4.58052583,61020.0,61019.0,0.05246848]
[1719652853750,4.56351137,61020.0,61019.0,0.05246848]
[1719652853963,4.58052583,61020.0,61019.0,0.05246848]
[1719652854819,4.74285954,61020.0,61019.0,0.05246848]
[1719652855457,4.72584317,61020.0,61019.0,0.05246848]
[1719652856775,4.56350946,61020.0,61019.0,0.05246848]
[1719652862286,4.56350962,61020.0,61019.0,0.05246848]
[1719652863680,4.56313776,61020.0,61019.0,0.05246848]
[1719652865525,4.43283788,61020.0,61019.0,0.05246848]
[1719652865977,4.41582314,61020.0,61019.0,0.05246848]
[1719652866193,4.94897498,61020.0,61019.0,0.05246848]
[1719652866412,4.53645398,61020.0,61019.0,0.05246848]
[1719652868371,4.51943914,61020.0,61019.0,0.05246848]
[1719652868572,4.53645775,61020.0,61019.0,0.05246848]
[1719652869394,4.69879146,61020.0,61019.0,0.05246848]
[1719652869803,4.53645775,61020.0,61019.0,0.05246848]
[1719652871466,4.45156375,61020.0,61019.0,0.05246848]
[1719652871704,4.43053575,61020.0,61019.0,0.05246848]
[1719652871889,4.41126002,61020.0,61019.0,0.05246848]
[1719652872133,4.42609468,61020.0,61019.0,0.05246848]
[1719652872371,4.22747748,61020.0,61019.0,0.05246848]
[1719652872560,1.96538048,61020.0,61019.0,0.17733791]
[1719652872797,1.77480148,61020.0,61019.0,0.27553791]
[1719652874985,1.75778272,61020.0,61019.0,0.27553791]
[1719652875190,1.77180023,61020.0,61019.0,0.17336848]
[1719652875397,1.77180023,61020.0,61019.0,0.17733791]
[1719652875629,1.77180021,61020.0,61019.0,0.17733791]
[1719652875861,1.77080021,61020.0,61019.0,0.17733791]
[1719652876292,1.76880021,61020.0,61019.0,0.17733791]
[1719652876492,1.76780021,61020.0,61019.0,0.17733791]
[1719652876698,1.76780021,61020.0,61019.0,0.17833791]
[1719652876906,1.57304921,61020.0,61019.0,0.17833791]
[1719652878162,1.55603172,61020.0,61019.0,0.17833791]
[1719652878388,1.57304923,61020.0,61019.0,0.17436848]
[1719652879814,1.55713002,61020.0,61019.0,0.17436848]
[1719652881647,1.55713026,61020.0,61019.0,0.17436848]
[1719652883144,0.19098926,61020.0,61019.0,0.17833791]
[1719652883596,2.90596526,61020.0,61019.0,0.17833791]
[1719652884055,2.90596521,61020.0,61019.0,0.17833791]
[1719652884745,2.72648021,61020.0,61019.0,0.17833791]
[1719652884972,2.72648026,61020.0,61019.0,0.17833791]
[1719652885440,2.72648026,61020.0,61019.0,0.05346848]
[1719652888261,2.7264886,61020.0,61019.0,1.05346848]
[1719652888724,2.72648641,61020.0,61019.0,1.06566441]
[1719652890105,2.70669641,61020.0,61019.0,1.06566441]
[1719652890591,3.0848299,61020.0,61019.0,1.06566441]
[1719652890855,3.06464872,61020.0,61019.0,0.40296441]
[1719652891100,3.06464872,61020.0,61019.0,0.37362647]
[1719652891101,3.06464614,61020.0,61019.0,0.37362647]
[1719652891800,2.74653666,61020.0,61019.0,0.37362647]
[1719652892028,2.85063666,61020.0,61019.0,0.37462647]
[1719652892510,2.69070317,61020.0,61019.0,0.37462647]
[1719652893886,2.68970317,61020.0,61019.0,0.37462647]
[1719652894117,2.78970317,61020.0,61019.0,0.37462647]
[1719652894345,2.79770317,61020.0,61019.0,0.37562647]
[1719652894573,2.79770429,61020.0,61019.0,0.37562647]
[1719652894802,2.960038,61020.0,61019.0,0.37562647]
[1719652896005,2.69415036,61020.0,61019.0,0.37562647]
[1719652897398,2.53181665,61020.0,61019.0,0.37562647]
[1719652897891,2.53181693,61020.0,61019.0,0.37562647]
[1719652898346,2.53181688,61020.0,61019.0,0.37562647]
[1719652900774,2.5318169,61020.0,61019.0,0.37562647]
[1719652901239,2.53181686,61020.0,61019.0,0.37655047]
[1719652901467,2.53265686,61020.0,61019.0,0.37655047]
[1719652903063,2.40895686,61020.0,61019.0,0.37655047]
[1719652903291,2.53265686,61020.0,61019.0,0.37655047]
[1719652903754,2.62871712,61020.0,61019.0,0.37655047]
[1719652904398,2.61169447,61020.0,61019.0,0.37655047]
[1719652904627,2.62871693,61020.0,61019.0,0.37655047]
[1719652906935,2.62871693,61020.0,61013.0,0.1235]
[1719652907161,0.0961,61014.0,61013.0,0.1235]
[1719652908796,3.794596,61014.0,61013.0,0.001]
[1719652909020,3.572365,61014.0,61013.0,0.1231]
[1719652909251,3.511597,61014.0,61013.0,0.1231]
[1719652909476,3.52861945,61014.0,61013.0,0.1231]
[1719652909944,4.10585316,61014.0,61006.0,0.50489343]
[1719652910166,0.0961,61007.0,61006.0,0.50489343]
[1719652910471,2.683345,61007.0,61006.0,0.62769343]
[1719652910693,2.817968,61007.0,61006.0,0.63990446]
[1719652910928,2.15452875,61007.0,61006.0,0.63990446]
[1719652911171,1.90402775,61007.0,61006.0,0.64090446]
[1719652911640,1.90402775,61007.0,61006.0,0.63990446]
[1719652911860,1.89541775,61007.0,61006.0,0.64890446]
[1719652912065,1.89641775,61007.0,61006.0,0.65790446]
[1719652912713,1.89641775,61007.0,61006.0,0.74960446]
[1719652913986,1.879397,61007.0,61006.0,0.74960446]
[1719652914209,1.89641825,61007.0,61006.0,0.74960446]
[1719652914425,1.89641825,61007.0,61006.0,0.73739343]
[1719652914632,1.76159125,61007.0,61006.0,0.73739343]
[1719652914841,1.76159125,61007.0,61006.0,0.74960446]
[1719652915065,1.76159125,61007.0,61006.0,0.76960446]
[1719652915900,1.37331625,61007.0,61006.0,0.76960446]
[1719652916113,0.34062025,61007.0,61006.0,0.76960446]
[1719652916325,0.43672025,61007.0,61006.0,0.76960446]
[1719652917046,0.419699,61007.0,61006.0,0.76960446]
[1719652919414,0.419699,61007.0,61006.0,0.74960446]
[1719652919831,0.419699,61007.0,61006.0,0.76960446]
[1719652921563,0.419699,61007.0,61006.0,0.76953704]
[1719652925282,0.419699,61007.0,61006.0,0.76953704]
[1719652925771,0.419699,61007.0,61006.0,0.74556761]
[1719652926007,0.419699,61007.0,61006.0,0.74953704]
[1719652926989,0.1981,61007.0,61006.0,0.74953704]
[1719652927216,1.307561,61007.0,61006.0,0.74953704]
[1719652927456,0.1981,61007.0,61006.0,0.74953704]
[1719652927914,0.1981,61007.0,61006.0,0.76953704]
[1719652927915,1.407561,61007.0,61006.0,0.76953704]
[1719652928134,0.1981,61007.0,61006.0,0.76953704]
[1719652928368,1.407763,61007.0,61006.0,0.76953704]
[1719652928610,0.0981,61007.0,61006.0,0.76953704]
[1719652929090,0.21512163,61007.0,61006.0,0.76953704]
[1719652929314,1.11317463,61007.0,61006.0,0.74953704]
[1719652929550,1.11317463,61007.0,61006.0,0.65386761]
[1719652929551,1.11317442,61007.0,61006.0,0.65386761]
[1719652930232,1.11317442,61007.0,61006.0,0.65783704]
[1719652932793,1.096153,61007.0,61006.0,0.65783704]
[1719652933260,1.11317442,61007.0,61006.0,0.65783704]
[1719652933300,1.13103584,61007.0,61006.0,0.65783704]
[1719652933524,1.11401442,61007.0,61006.0,0.65783704]
[1719652937914,1.22131187,61007.0,61006.0,0.65386761]
[1719652938178,1.46081187,61007.0,61006.0,0.03106761]
[1719652938390,0.56275887,61007.0,61006.0,0.03503704]
[1719652938625,0.45546142,61007.0,61006.0,0.01885658]
[1719652938851,0.43844,61007.0,61006.0,0.01885658]
[1719652939353,4.802796,61007.0,61006.0,0.01306787]
[1719652939581,4.474003,61007.0,61006.0,0.01306787]
[1719652939789,4.474003,61007.0,61006.0,0.00085658]
[1719652940216,4.392138,61007.0,61006.0,0.00085658]
[1719652940419,4.258338,61007.0,61006.0,0.00085658]
[1719652940646,4.16966502,61007.0,61006.0,0.00085658]
[1719652940873,4.16666502,61007.0,61006.0,0.00085658]
[1719652941527,4.16866502,61007.0,61006.0,0.00085658]
[1719652941935,4.16666502,61007.0,61006.0,0.00085658]
[1719652942150,4.16466502,61007.0,61006.0,0.00085658]
[1719652942385,4.148638,61007.0,61006.0,0.00085658]
[1719652942646,4.16566502,61007.0,61006.0,0.00085658]
[1719652942872,4.148638,61007.0,61006.0,0.00085658]
[1719652943091,4.16566502,61007.0,61006.0,0.00085658]
[1719652944204,4.148638,61007.0,61006.0,0.00085658]
[1719652944418,4.16566502,61007.0,61006.0,0.00085658]
[1719652945503,4.16566414,61007.0,61006.0,0.00085658]
[1719652945721,4.148638,61007.0,61006.0,0.00085658]
[1719652945950,4.16566418,61007.0,61006.0,0.00482601]
[1719652946858,4.16566418,61007.0,61006.0,0.00085658]
[1719652947351,4.16566418,61007.0,61006.0,0.00482601]
[1719652948515,4.16466418,61007.0,61006.0,0.00482601]
[1719652948714,4.16566418,61007.0,61006.0,0.00482601]
[1719652949151,4.148638,61007.0,61006.0,0.00482601]
[1719652949364,4.16466423,61007.0,61006.0,0.00482601]
[1719652949600,4.67440823,61007.0,61006.0,0.00085658]
[1719652949852,4.67540823,61007.0,61006.0,0.00482601]
[1719652950309,4.49540823,61007.0,61006.0,0.00085658]
[1719652951929,3.90720623,61007.0,61006.0,0.13922601]
[1719652952398,3.762455,61007.0,61006.0,0.13922601]
[1719652952642,2.6720741,61007.0,61006.0,0.13922601]
[1719652952891,2.67207416,61007.0,61006.0,0.13922601]
[1719652953121,2.67207416,61007.0,61006.0,0.1514373]
[1719652953878,1.99087616,61007.0,61006.0,0.2756373]
[1719652954325,1.96953516,61007.0,61006.0,0.2756373]
[1719652954546,1.89753516,61007.0,61006.0,0.26342601]
[1719652955219,0.99542016,61007.0,61006.0,0.26342601]
[1719652955691,0.99542046,61007.0,61006.0,0.2756373]
[1719652962298,0.99542093,61007.0,61006.0,0.2756373]
[1719652962756,0.99542092,61007.0,61006.0,0.2756373]
[1719652962970,0.99442092,61007.0,61006.0,0.2756373]
[1719652963394,0.97051092,61007.0,61006.0,0.2756373]
[1719652964510,0.97051092,61007.0,61006.0,0.2776373]
[1719652964712,0.97051092,61007.0,61006.0,0.2576373]
[1719652964922,0.97051092,61007.0,61006.0,0.2776373]
[1719652965131,0.97151092,61007.0,61006.0,0.2776373]
[1719652965357,0.953484,61007.0,61006.0,0.2776373]
[1719652965579,0.97051099,61007.0,61006.0,0.2786373]
[1719652968743,0.88008,61007.0,61006.0,0.2786373]
[1719652968961,0.89710696,61007.0,61006.0,0.2786373]
[1719652969181,0.89710696,61007.0,61006.0,0.1744373]
[1719652969397,0.7016614,61007.0,61006.0,0.1744373]
[1719652969610,0.87116396,61007.0,61006.0,0.1744373]
[1719652969827,0.72985996,61007.0,61006.0,0.1744373]
[1719652970460,0.73226196,61007.0,61006.0,0.1744373]
[1719652970898,0.73226196,61007.0,61006.0,0.1544373]
[1719652971119,0.73226196,61007.0,61006.0,0.1744373]
[1719652972041,0.73226203,61007.0,61006.0,0.1744373]
[1719652972473,0.715235,61007.0,61006.0,0.1744373]
[1719652972678,0.73226193,61007.0,61006.0,0.1744373]
[1719652972912,0.73226193,61007.0,61006.0,0.1714373]
[1719652973362,0.73226193,61007.0,61006.0,0.1724373]
[1719652973802,0.73226193,61007.0,61006.0,0.1714373]
[1719652974702,0.73226193,61007.0,61006.0,0.1734373]
[1719652975138,0.73226193,61007.0,61006.0,0.1534373]
[1719652975359,0.73226185,61007.0,61006.0,0.0190373]
[1719652975568,0.73226185,61007.0,61006.0,0.0200373]
[1719652981660,0.73225974,61007.0,61006.0,0.0200373]
[1719652983410,0.73225974,61007.0,61006.0,1.0200373]
[1719652983615,1.14598174,61007.0,61006.0,1.0200373]
[1719652983820,0.21312474,61007.0,61006.0,1.0200373]
[1719652984029,1.01758174,61007.0,61006.0,1.0200373]
[1719652984254,1.000557,61007.0,61006.0,1.0200373]
[1719652984461,1.017581,61007.0,61006.0,1.0200373]
[1719652984897,0.981981,61007.0,61006.0,1.0200373]
[1719652987554,0.98198096,61007.0,61006.0,1.0200373]
[1719652989169,0.97191996,61007.0,61006.0,1.0200373]
[1719652989653,0.97191996,61007.0,61006.0,0.0200373]
[1719652990371,0.95687396,61007.0,61006.0,0.0200373]
[1719652990829,0.95687416,61007.0,61006.0,0.0200373]
[1719652992699,0.95687416,61007.0,61006.0,0.0400373]
[1719652992922,0.83745116,61007.0,61006.0,0.0400373]
[1719652994064,0.820427,61007.0,61006.0,0.0400373]
[1719652994284,0.83745116,61007.0,61006.0,0.0400373]
[1719652995860,0.92656816,61007.0,61006.0,0.0400373]
[1719652996305,0.80361916,61007.0,61006.0,0.0200373]
[1719652996527,0.80361916,61007.0,61006.0,0.0400373]
[1719652997369,0.80361914,61007.0,61006.0,0.0400373]
[1719652997783,0.80445914,61007.0,61006.0,0.0200373]
[1719652998189,0.80445914,61007.0,61006.0,0.0400373]
[1719652999451,0.79102314,61007.0,61006.0,0.0400373]
[1719652999903,0.79102314,61007.0,61006.0,0.01606787]
[1719653000132,0.79102314,61007.0,61006.0,0.0200373]
[1719653000560,0.79102316,61007.0,61006.0,0.0400373]
[1719653000775,0.79102316,61007.0,61006.0,0.01606787]
[1719653000776,0.79102428,61007.0,61006.0,0.01606787]
[1719653001463,0.68510928,61007.0,61006.0,0.01606787]
[1719653002541,0.68510928,61007.0,61006.0,0.0400373]
[1719653003613,0.68510806,61007.0,61006.0,0.0400373]
[1719653003826,0.68510806,61007.0,61006.0,0.0200373]
[1719653004045,0.668084,61007.0,61006.0,0.0200373]
[1719653004508,0.68510806,61007.0,61006.0,0.0200373]
[1719653005176,0.67025106,61007.0,61006.0,0.0200373]
[1719653005602,0.67025106,61007.0,61006.0,0.0400373]
[1719653005812,0.67025106,61007.0,61006.0,0.0200373]